fUSD/lending_fUSD_20250503
["ID","MTS","AMOUNT","RATE_DAILY","PERIOD"]
[359727077,1746282646014,-500.0,0.00019673,2]
[359727078,1746282646023,-291.86484364,0.00019673,2]
[359727079,1746282646033,-369.03481286,0.00019673,2]
[359727080,1746282646043,-500.0,0.00019673,2]
[359727081,1746282646053,-500.0,0.00019673,2]
[359727082,1746282646064,-500.0,0.00019673,2]
[359727083,1746282646074,-500.0,0.00019673,2]
[359727084,1746282646084,-500.0,0.00019673,2]
[359727085,1746282646094,-162.1885406,0.00019673,2]
[359727086,1746282646104,-160.11863319,0.00019673,2]
[359727087,1746282646114,-500.0,0.00019673,2]
[359727088,1746282646124,-510.70586908,0.00019673,2]
[359727089,1746282646133,-527.4996018,0.00019673,2]
[359727090,1746282646143,-500.0,0.00019673,2]
[359727091,1746282646153,-500.0,0.00019673,2]
[359727092,1746282646163,-500.0,0.00019673,2]
[359727093,1746282646172,-500.0,0.00019673,2]
[359727094,1746282646182,-500.0,0.00019673,2]
[359727095,1746282646192,-5368.2153691,0.00019689,2]
[359727096,1746282646203,-3089.14654292,0.00019691,2]
[359727097,1746282646212,-500.0,0.00019699,2]
[359727098,1746282646222,-1940.0,0.000197,2]
[359727099,1746282646231,-500.0,0.00019723,2]
[359727100,1746282646241,-500.0,0.00019723,2]
[359727101,1746282646251,-151.0,0.00019724,2]
[359727102,1746282646261,-450.0,0.00019724,2]
[359727103,1746282646270,-450.0,0.00019724,2]
[359727104,1746282646281,-500.0,0.00019724,2]
[359727105,1746282646291,-334.33492292,0.00019724,2]
[359727106,1746282646300,-450.0,0.00019724,2]
[359727107,1746282646311,-450.0,0.00019724,2]
[359727108,1746282646320,-512.40616649,0.00019724,2]
[359727109,1746282646331,-450.0,0.00019724,2]
[359727110,1746282646340,-450.0,0.00019724,2]
[359727111,1746282646350,-450.0,0.00019724,2]
[359727113,1746282646360,-450.0,0.00019724,2]
[359727115,1746282646370,-450.0,0.00019724,2]
[359727117,1746282646379,-450.0,0.00019724,2]
[359727118,1746282646389,-450.0,0.00019724,2]
[359727119,1746282646399,-450.0,0.00019724,2]
[359727120,1746282646408,-450.0,0.00019724,2]
[359727121,1746282646418,-450.0,0.00019724,2]
[359727122,1746282646428,-450.0,0.00019724,2]
[359727123,1746282646437,-450.0,0.00019724,2]
[359727124,1746282646447,-504.67890109,0.00019724,2]
[359727125,1746282646457,-450.0,0.00019724,2]
[359727126,1746282646466,-450.0,0.00019724,2]
[359727127,1746282646476,-415.87520554,0.00019724,2]
[359727128,1746282646486,-450.0,0.00019724,2]
[359727129,1746282646496,-450.0,0.00019724,2]
[359727130,1746282646505,-572.36824906,0.00019724,2]
[359727131,1746282646515,-450.0,0.00019724,2]
[359727132,1746282646525,-450.0,0.00019724,2]
[359727133,1746282646534,-450.0,0.00019724,2]
[359727134,1746282646544,-450.0,0.00019724,2]
[359727135,1746282646553,-450.0,0.00019724,2]
[359727136,1746282646564,-450.0,0.00019724,2]
[359727137,1746282646573,-450.0,0.00019724,2]
[359727138,1746282646583,-450.0,0.00019724,2]
[359727139,1746282646594,-450.0,0.00019724,2]
[359727140,1746282646604,-450.0,0.00019724,2]
[359727141,1746282646614,-450.0,0.00019724,2]
[359727142,1746282646624,-534.59,0.00019724,2]
[359727143,1746282646633,-450.0,0.00019724,2]
[359727144,1746282646643,-400.55990545,0.00019724,2]
[359727145,1746282646653,-450.0,0.00019724,2]
[359727147,1746282646663,-450.0,0.00019724,2]
[359727149,1746282646677,-450.0,0.00019724,2]
[359727151,1746282646687,-500.0,0.00019724,2]
[359727153,1746282646696,-151.0,0.00019724,2]
[359727154,1746282646705,-151.0,0.00019725,2]
[359727155,1746282646715,-287.0,0.00019726,2]
[359727156,1746282646724,-151.0,0.00019727,2]
[359727157,1746282646734,-3089.14654292,0.00019733,2]
[359727158,1746282646744,-500.0,0.00019733,2]
[359727159,1746282646755,-57964.31506077,0.0001975,2]
[359727160,1746282646765,-3089.14654292,0.00019775,2]
[359727161,1746282646774,-3292.2384329,0.00019799,2]
[359727162,1746282646783,-3089.14654292,0.00019816,2]
[359727163,1746282646794,-2000.0,0.0001984,2]
[359727164,1746282646805,-776.9,0.00019854,2]
[359727165,1746282646817,-500.0,0.00019854,2]
[359727166,1746282646828,-518.92159158,0.00019854,2]
[359727167,1746282646837,-500.0,0.00019854,2]
[359727168,1746282646847,-3089.14654292,0.00019858,2]
[359727169,1746282646857,-12500.0,0.00019865,2]
[359727170,1746282646867,-532.23391832,0.00019873,2]
[359727171,1746282646877,-501.21994559,0.00019873,2]
[359727172,1746282646886,-160.45164529,0.00019873,2]
[359727173,1746282646896,-500.0,0.00019873,2]
[359727174,1746282646906,-500.0,0.00019873,2]
[359727175,1746282646915,-500.0,0.00019873,2]
[359727176,1746282646926,-500.0,0.00019873,2]
[359727177,1746282646935,-500.0,0.00019873,2]
[359727178,1746282646945,-500.0,0.00019873,2]
[359727179,1746282646956,-163.0587868,0.00019873,2]
[359727180,1746282646967,-500.0,0.00019873,2]
[359727181,1746282646976,-544.89074326,0.00019873,2]
[359727182,1746282646986,-500.0,0.00019873,2]
[359727183,1746282646996,-500.0,0.00019873,2]
[359727184,1746282647006,-160.20238278,0.00019873,2]
[359727185,1746282647016,-500.0,0.00019873,2]
[359727186,1746282647026,-500.0,0.00019873,2]
[359727187,1746282647038,-152.63342926,0.00019873,2]
[359727188,1746282647048,-505.92257895,0.00019873,2]
[359727189,1746282647058,-504.43483647,0.00019873,2]
[359727190,1746282647068,-517.26161729,0.00019873,2]
[359727191,1746282647079,-505.26039964,0.00019873,2]
[359727192,1746282647089,-500.0,0.00019873,2]
[359727193,1746282647099,-539.24803438,0.00019873,2]
[359727194,1746282647109,-500.0,0.00019873,2]
[359727195,1746282647119,-502.98408913,0.00019873,2]
[359727196,1746282647129,-12500.0,0.00019874,2]
[359727197,1746282647141,-12500.0,0.00019882,2]
[359727198,1746282647152,-322.83104562,0.00019886,2]
[359727199,1746282647162,-322.83104562,0.0001989,2]
[359727200,1746282647172,-3403.53739619,0.00019891,2]
[359727201,1746282647560,-2325.4957083,0.00019891,2]
[359727202,1746282648027,-450.0,0.00019622,2]
[359727203,1746282648037,-6770.96689551,0.00019891,2]
[359727204,1746282648047,-12500.0,0.00019891,2]
[359727205,1746282648056,-322.83104562,0.00019893,2]
[359727206,1746282648066,-450.0,0.00019896,2]
[359727207,1746282648076,-450.0,0.00019896,2]
[359727208,1746282648085,-450.0,0.00019896,2]
[359727209,1746282648095,-450.0,0.00019896,2]
[359727210,1746282648104,-450.0,0.00019896,2]
[359727211,1746282648115,-199.29,0.00019896,2]
[359727212,1746282648124,-450.0,0.00019896,2]
[359727213,1746282648134,-322.83104562,0.00019897,2]
[359727214,1746282648143,-450.0,0.00019897,2]
[359727215,1746282648153,-450.0,0.00019897,2]
[359727216,1746282648164,-450.0,0.00019897,2]
[359727217,1746282648174,-450.0,0.00019897,2]
[359727218,1746282648184,-975.21,0.00019897,2]
[359727219,1746282648193,-462.68,0.00019897,2]
[359727220,1746282648203,-450.0,0.00019897,2]
[359727221,1746282648214,-450.0,0.00019897,2]
[359727222,1746282648224,-450.0,0.00019897,2]
[359727223,1746282648233,-1308.88,0.00019897,2]
[359727224,1746282648243,-735.78,0.00019897,2]
[359727225,1746282648254,-450.0,0.00019897,2]
[359727226,1746282648264,-450.0,0.00019897,2]
[359727227,1746282648273,-450.0,0.00019897,2]
[359727228,1746282648283,-668.81,0.00019897,2]
[359727229,1746282648293,-450.0,0.00019897,2]
[359727230,1746282648303,-450.0,0.00019897,2]
[359727231,1746282648313,-450.0,0.00019897,2]
[359727232,1746282648323,-450.0,0.00019897,2]
[359727233,1746282648332,-1552.32,0.00019897,2]
[359727234,1746282648342,-557.4,0.00019897,2]
[359727235,1746282648352,-450.0,0.00019897,2]
[359727236,1746282648362,-450.0,0.00019897,2]
[359727237,1746282648371,-676.42,0.00019897,2]
[359727238,1746282648381,-450.0,0.00019897,2]
[359727239,1746282648391,-4245.5,0.00019897,2]
[359727240,1746282648401,-502.18,0.00019897,2]
[359727241,1746282648411,-469.53,0.00019897,2]
[359727242,1746282648420,-876.75,0.00019897,2]
[359727243,1746282648430,-450.0,0.00019897,2]
[359727244,1746282648439,-450.0,0.00019897,2]
[359727245,1746282648449,-450.0,0.00019897,2]
[359727246,1746282648459,-450.0,0.00019897,2]
[359727247,1746282648468,-450.0,0.00019897,2]
[359727248,1746282648478,-782.12,0.00019897,2]
[359727249,1746282648487,-468.70797676,0.00019897,2]
[359727250,1746282648497,-450.0,0.00019897,2]
[359727251,1746282648506,-450.0,0.00019897,2]
[359727252,1746282648516,-450.0,0.00019897,2]
[359727253,1746282648525,-460.28,0.00019897,2]
[359727254,1746282648535,-1922.34,0.00019897,2]
[359727255,1746282648545,-450.0,0.00019897,2]
[359727256,1746282648555,-450.0,0.00019897,2]
[359727257,1746282648564,-117460.99,0.00019897,2]
[359727258,1746282648574,-450.0,0.00019897,2]
[359727259,1746282648584,-5678.96,0.00019897,2]
[359727260,1746282648593,-630.33,0.00019897,2]
[359727261,1746282648602,-450.0,0.00019897,2]
[359727262,1746282648612,-705.49,0.00019897,2]
[359727263,1746282648622,-450.0,0.00019897,2]
[359727264,1746282648631,-4069.28,0.00019897,2]
[359727265,1746282648641,-450.0,0.00019897,2]
[359727266,1746282648651,-450.0,0.00019897,2]
[359727267,1746282648660,-450.0,0.00019897,2]
[359727268,1746282648670,-630.83,0.00019897,2]
[359727269,1746282648679,-450.0,0.00019897,2]
[359727270,1746282648695,-450.0,0.00019897,2]
[359727271,1746282648705,-876.86,0.00019897,2]
[359727272,1746282648716,-450.0,0.00019897,2]
[359727273,1746282648726,-643.21,0.00019897,2]
[359727274,1746282648736,-450.0,0.00019898,2]
[359727275,1746282648748,-450.0,0.00019898,2]
[359727276,1746282648758,-373.18418621,0.00019898,2]
[359727277,1746282648768,-1322.77,0.00019898,2]
[359727278,1746282648779,-450.0,0.00019898,2]
[359727279,1746282648789,-450.0,0.00019898,2]
[359727280,1746282648800,-450.0,0.00019898,2]
[359727281,1746282648810,-450.0,0.00019898,2]
[359727282,1746282648819,-450.0,0.00019898,2]
[359727283,1746282648829,-450.0,0.00019898,2]
[359727284,1746282648839,-450.0,0.00019898,2]
[359727285,1746282648848,-558.9232263,0.00019898,2]
[359727286,1746282648858,-776.9,0.00019898,2]
[359727287,1746282648867,-450.0,0.00019898,2]
[359727288,1746282648877,-450.0,0.00019898,2]
[359727289,1746282648886,-450.0,0.00019898,2]
[359727290,1746282648896,-450.0,0.00019898,2]
[359727291,1746282648905,-450.0,0.00019898,2]
[359727292,1746282648915,-450.0,0.00019898,2]
[359727293,1746282648924,-450.0,0.00019898,2]
[359727294,1746282648933,-450.0,0.00019898,2]
[359727295,1746282648942,-450.0,0.00019898,2]
[359727296,1746282648951,-450.0,0.00019898,2]
[359727297,1746282648961,-444.44741038,0.00019898,2]
[359727298,1746282648970,-279.89952075,0.00019898,2]
[359727299,1746282648979,-450.0,0.00019898,2]
[359727300,1746282648989,-450.0,0.00019898,2]
[359727301,1746282648998,-450.0,0.00019898,2]
[359727302,1746282649007,-450.0,0.00019898,2]
[359727303,1746282649017,-450.0,0.00019898,2]
[359727304,1746282649026,-450.0,0.00019898,2]
[359727305,1746282649036,-450.0,0.00019898,2]
[359727306,1746282649046,-450.0,0.00019898,2]
[359727307,1746282649055,-450.0,0.00019898,2]
[359727308,1746282649065,-450.0,0.00019898,2]
[359727309,1746282649075,-450.21,0.00019898,2]
[359727310,1746282649085,-450.0,0.00019898,2]
[359727311,1746282649094,-450.0,0.00019898,2]
[359727312,1746282649104,-500.0,0.00019898,2]
[359727313,1746282649113,-450.0,0.00019898,2]
[359727314,1746282649123,-450.0,0.00019898,2]
[359727315,1746282649132,-450.0,0.00019898,2]
[359727316,1746282649142,-450.0,0.00019898,2]
[359727317,1746282649152,-450.0,0.00019898,2]
[359727318,1746282649161,-450.0,0.00019898,2]
[359727319,1746282649171,-450.0,0.00019898,2]
[359727320,1746282649181,-450.0,0.00019898,2]
[359727321,1746282649190,-450.0,0.00019898,2]
[359727322,1746282649200,-450.0,0.00019898,2]
[359727323,1746282649209,-450.0,0.00019898,2]
[359727324,1746282649219,-450.0,0.00019898,2]
[359727325,1746282649228,-450.0,0.00019898,2]
[359727326,1746282649238,-450.0,0.00019898,2]
[359727327,1746282649248,-753.69310054,0.00019898,2]
[359727328,1746282649257,-326.16887724,0.00019898,2]
[359727329,1746282649267,-450.0,0.00019898,2]
[359727330,1746282649276,-520.25,0.00019898,2]
[359727331,1746282649286,-450.0,0.00019898,2]
[359727332,1746282649296,-450.0,0.00019898,2]
[359727333,1746282649306,-450.0,0.00019898,2]
[359727334,1746282649315,-450.0,0.00019898,2]
[359727335,1746282649325,-450.0,0.00019898,2]
[359727336,1746282649334,-450.0,0.00019898,2]
[359727337,1746282649344,-450.0,0.00019898,2]
[359727338,1746282649354,-450.0,0.00019898,2]
[359727339,1746282649363,-450.0,0.00019898,2]
[359727340,1746282649373,-450.0,0.00019898,2]
[359727341,1746282649383,-450.0,0.00019898,2]
[359727342,1746282649393,-691.71,0.00019898,2]
[359727343,1746282649402,-450.0,0.00019898,2]
[359727344,1746282649411,-450.0,0.00019898,2]
[359727345,1746282649421,-450.0,0.00019898,2]
[359727346,1746282649430,-450.0,0.00019898,2]
[359727347,1746282649439,-450.0,0.00019898,2]
[359727348,1746282649448,-450.0,0.00019898,2]
[359727349,1746282649458,-450.0,0.00019898,2]
[359727350,1746282649467,-450.0,0.00019898,2]
[359727351,1746282649476,-450.0,0.00019898,2]
[359727352,1746282649486,-450.0,0.00019898,2]
[359727353,1746282649495,-450.0,0.00019898,2]
[359727354,1746282649504,-450.0,0.00019898,2]
[359727355,1746282649513,-450.0,0.00019898,2]
[359727356,1746282649522,-450.0,0.00019898,2]
[359727357,1746282649531,-384.31533776,0.00019898,2]
[359727358,1746282649540,-261.7,0.00019898,2]
[359727359,1746282649550,-450.0,0.00019898,2]
[359727360,1746282649559,-450.0,0.00019898,2]
[359727361,1746282649569,-619.57,0.00019898,2]
[359727362,1746282649579,-450.0,0.00019898,2]
[359727363,1746282649589,-450.0,0.00019898,2]
[359727364,1746282649599,-450.0,0.00019898,2]
[359727365,1746282649608,-450.0,0.00019898,2]
[359727366,1746282649617,-450.0,0.00019898,2]
[359727367,1746282649627,-450.0,0.00019898,2]
[359727368,1746282649636,-450.0,0.00019898,2]
[359727369,1746282649645,-534.1,0.00019898,2]
[359727370,1746282649655,-483.56,0.00019898,2]
[359727371,1746282649664,-450.0,0.00019898,2]
[359727372,1746282649674,-450.0,0.00019898,2]
[359727373,1746282649683,-450.0,0.00019898,2]
[359727374,1746282649696,-1041.94,0.00019898,2]
[359727375,1746282649705,-450.0,0.00019898,2]
[359727376,1746282649715,-450.0,0.00019898,2]
[359727377,1746282649724,-450.0,0.00019898,2]
[359727378,1746282649735,-450.0,0.00019898,2]
[359727379,1746282649743,-450.0,0.00019898,2]
[359727380,1746282649753,-761.52,0.00019898,2]
[359727381,1746282649763,-450.0,0.00019898,2]
[359727382,1746282649774,-450.0,0.00019898,2]
[359727383,1746282649783,-450.0,0.00019898,2]
[359727384,1746282649792,-450.0,0.00019898,2]
[359727385,1746282649801,-450.0,0.00019898,2]
[359727386,1746282649810,-592.03,0.00019898,2]
[359727387,1746282649819,-490.03,0.00019898,2]
[359727388,1746282649830,-393.19971781,0.00019898,2]
[359727389,1746282649840,-500.0,0.00019898,2]
[359727390,1746282649850,-450.0,0.00019898,2]
[359727391,1746282649862,-450.0,0.00019898,2]
[359727392,1746282649871,-450.0,0.00019898,2]
[359727393,1746282649882,-450.0,0.00019898,2]
[359727394,1746282649894,-245.51823283,0.00019898,2]
[359727395,1746282649905,-450.0,0.00019898,2]
[359727396,1746282649915,-450.0,0.00019898,2]
[359727397,1746282649926,-450.0,0.00019898,2]
[359727398,1746282649937,-450.0,0.00019898,2]
[359727399,1746282649948,-450.0,0.00019898,2]
[359727400,1746282649958,-638.34,0.00019898,2]
[359727401,1746282649968,-450.0,0.00019898,2]
[359727402,1746282649976,-841.13,0.00019898,2]
[359727403,1746282649985,-450.0,0.00019898,2]
[359727404,1746282649994,-450.0,0.00019898,2]
[359727405,1746282650004,-450.0,0.00019898,2]
[359727406,1746282650014,-450.0,0.00019898,2]
[359727407,1746282650025,-450.0,0.00019898,2]
[359727408,1746282650035,-450.0,0.00019898,2]
[359727409,1746282650045,-634.49,0.00019898,2]
[359727410,1746282650055,-450.0,0.00019898,2]
[359727411,1746282650068,-450.0,0.00019898,2]
[359727412,1746282650078,-450.0,0.00019898,2]
[359727413,1746282650090,-298.73543236,0.00019898,2]
[359727414,1746282650101,-450.0,0.00019898,2]
[359727415,1746282650111,-450.0,0.00019898,2]
[359727416,1746282650122,-450.0,0.00019898,2]
[359727417,1746282650131,-450.0,0.00019898,2]
[359727418,1746282650140,-450.0,0.00019898,2]
[359727419,1746282650150,-450.0,0.00019898,2]
[359727420,1746282650158,-450.0,0.00019898,2]
[359727421,1746282650167,-450.0,0.00019898,2]
[359727422,1746282650177,-261.63,0.00019898,2]
[359727423,1746282650186,-450.0,0.00019898,2]
[359727424,1746282650195,-450.0,0.00019898,2]
[359727425,1746282650204,-450.0,0.00019898,2]
[359727426,1746282650214,-450.0,0.00019898,2]
[359727427,1746282650223,-450.0,0.00019898,2]
[359727428,1746282650232,-450.0,0.00019898,2]
[359727429,1746282650297,-450.0,0.00019898,2]
[359727430,1746282650306,-450.0,0.00019898,2]
[359727431,1746282650315,-450.0,0.00019898,2]
[359727432,1746282650325,-450.0,0.00019898,2]
[359727433,1746282650334,-533.98,0.00019898,2]
[359727434,1746282650343,-481.624246,0.00019898,2]
[359727435,1746282650352,-450.0,0.00019898,2]
[359727436,1746282650361,-450.0,0.00019898,2]
[359727437,1746282650370,-450.0,0.00019898,2]
[359727438,1746282650379,-450.0,0.00019898,2]
[359727439,1746282650388,-450.0,0.00019898,2]
[359727440,1746282650397,-450.0,0.00019898,2]
[359727441,1746282650407,-459.43,0.00019898,2]
[359727442,1746282650417,-450.0,0.00019898,2]
[359727443,1746282650426,-450.0,0.00019898,2]
[359727444,1746282650435,-450.0,0.00019898,2]
[359727445,1746282650445,-450.0,0.00019898,2]
[359727446,1746282650454,-450.0,0.00019898,2]
[359727447,1746282650463,-450.0,0.00019898,2]
[359727448,1746282650472,-450.0,0.00019898,2]
[359727449,1746282650481,-450.0,0.00019898,2]
[359727450,1746282650490,-450.0,0.00019898,2]
[359727451,1746282650499,-450.0,0.00019898,2]
[359727452,1746282650508,-450.0,0.00019898,2]
[359727453,1746282650517,-670.86,0.00019898,2]
[359727454,1746282650527,-450.0,0.00019898,2]
[359727455,1746282650538,-450.0,0.00019898,2]
[359727456,1746282650547,-450.0,0.00019898,2]
[359727457,1746282650556,-583.4,0.00019898,2]
[359727458,1746282650566,-450.0,0.00019898,2]
[359727459,1746282650575,-450.0,0.00019898,2]
[359727460,1746282650584,-450.0,0.00019898,2]
[359727461,1746282650593,-450.0,0.00019898,2]
[359727462,1746282650602,-450.0,0.00019898,2]
[359727463,1746282650611,-724.97,0.00019898,2]
[359727464,1746282650621,-450.0,0.00019898,2]
[359727465,1746282650631,-248.85891665,0.00019898,2]
[359727466,1746282650641,-450.0,0.00019898,2]
[359727467,1746282650650,-450.0,0.00019898,2]
[359727468,1746282650660,-450.0,0.00019898,2]
[359727469,1746282650669,-450.0,0.00019898,2]
[359727470,1746282650678,-450.0,0.00019898,2]
[359727471,1746282650687,-550.30813027,0.00019898,2]
[359727472,1746282650696,-512.52,0.00019898,2]
[359727473,1746282650705,-450.0,0.00019898,2]
[359727474,1746282650715,-450.0,0.00019898,2]
[359727475,1746282650724,-450.0,0.00019898,2]
[359727476,1746282650734,-450.0,0.00019898,2]
[359727477,1746282650743,-450.0,0.00019898,2]
[359727478,1746282650753,-698.86,0.00019898,2]
[359727479,1746282650763,-793.38,0.00019898,2]
[359727480,1746282650772,-450.0,0.00019898,2]
[359727481,1746282650781,-450.0,0.00019898,2]
[359727482,1746282650790,-482.77,0.00019898,2]
[359727483,1746282650800,-804.96,0.00019898,2]
[359727484,1746282650809,-450.0,0.00019898,2]
[359727485,1746282650818,-450.0,0.00019898,2]
[359727486,1746282650829,-450.0,0.00019898,2]
[359727487,1746282650839,-450.0,0.00019898,2]
[359727488,1746282650849,-450.0,0.00019898,2]
[359727489,1746282650858,-450.0,0.00019898,2]
[359727490,1746282650867,-450.0,0.00019898,2]
[359727491,1746282650876,-603.77,0.00019898,2]
[359727492,1746282650886,-619.76,0.00019898,2]
[359727493,1746282650897,-450.0,0.00019898,2]
[359727494,1746282650906,-520.14886938,0.00019898,2]
[359727495,1746282650916,-450.0,0.00019898,2]
[359727496,1746282650926,-450.79,0.00019898,2]
[359727497,1746282650936,-2607.14,0.00019898,2]
[359727498,1746282650946,-450.0,0.00019898,2]
[359727499,1746282650955,-450.0,0.00019898,2]
[359727500,1746282650965,-506.11,0.00019898,2]
[359727501,1746282650974,-450.0,0.00019898,2]
[359727502,1746282650982,-469.72,0.00019898,2]
[359727503,1746282650991,-662.05,0.00019898,2]
[359727504,1746282651001,-450.0,0.00019898,2]
[359727505,1746282651010,-450.0,0.00019898,2]
[359727506,1746282651021,-1418.8,0.00019898,2]
[359727507,1746282651030,-549.88,0.00019898,2]
[359727508,1746282651040,-450.0,0.00019898,2]
[359727509,1746282651049,-1609.97,0.00019898,2]
[359727510,1746282651058,-808.32,0.00019898,2]
[359727511,1746282651067,-450.0,0.00019898,2]
[359727512,1746282651078,-450.0,0.00019898,2]
[359727513,1746282651088,-484.03,0.00019898,2]
[359727514,1746282651097,-450.0,0.00019898,2]
[359727515,1746282651107,-997.72,0.00019898,2]
[359727516,1746282651118,-450.0,0.00019898,2]
[359727517,1746282651127,-450.0,0.00019898,2]
[359727518,1746282651139,-1052.85,0.00019898,2]
[359727519,1746282651148,-450.0,0.00019898,2]
[359727520,1746282651158,-450.0,0.00019898,2]
[359727521,1746282651168,-465.99267293,0.00019898,2]
[359727522,1746282651177,-450.0,0.00019898,2]
[359727523,1746282651186,-450.0,0.00019898,2]
[359727524,1746282651195,-450.0,0.00019898,2]
[359727525,1746282651204,-452.63963356,0.00019898,2]
[359727526,1746282651213,-556.52,0.00019898,2]
[359727527,1746282651222,-5031.75,0.00019898,2]
[359727528,1746282651231,-450.0,0.00019898,2]
[359727529,1746282651240,-2554.92,0.00019898,2]
[359727530,1746282651249,-500.0,0.00019898,2]
[359727531,1746282651259,-450.0,0.00019898,2]
[359727532,1746282651268,-555.08,0.00019898,2]
[359727533,1746282651277,-450.0,0.00019898,2]
[359727534,1746282651286,-932.47,0.00019898,2]
[359727535,1746282651296,-450.0,0.00019898,2]
[359727536,1746282651305,-168.62056832,0.00019898,2]
[359727537,1746282651314,-6211.51,0.00019898,2]
[359727538,1746282651325,-450.0,0.00019898,2]
[359727539,1746282651335,-498.62,0.00019898,2]
[359727540,1746282651345,-450.0,0.00019898,2]
[359727541,1746282651355,-485.93786643,0.00019898,2]
[359727542,1746282651364,-662.6,0.00019898,2]
[359727543,1746282651373,-5633.86,0.00019898,2]
[359727544,1746282651383,-450.0,0.00019898,2]
[359727545,1746282651392,-450.0,0.00019898,2]
[359727546,1746282651401,-450.0,0.00019898,2]
[359727547,1746282651410,-450.0,0.00019898,2]
[359727548,1746282651419,-777.46,0.00019898,2]
[359727549,1746282651428,-553.77,0.00019898,2]
[359727550,1746282651439,-999.0,0.00019898,2]
[359727551,1746282651448,-450.0,0.00019898,2]
[359727552,1746282651457,-450.0,0.00019898,2]
[359727553,1746282651466,-597.75,0.00019898,2]
[359727554,1746282651475,-735.96,0.00019898,2]
[359727555,1746282651484,-306.58303092,0.00019898,2]
[359727556,1746282651493,-1995.8,0.00019898,2]
[359727557,1746282651502,-5952.18,0.00019898,2]
[359727558,1746282651511,-1155.48,0.00019898,2]
[359727559,1746282651520,-450.0,0.00019898,2]
[359727560,1746282651529,-450.0,0.00019898,2]
[359727561,1746282651537,-450.0,0.00019898,2]
[359727562,1746282651547,-106401.88,0.00019898,2]
[359727563,1746282651556,-457.99833282,0.00019898,2]
[359727564,1746282651565,-450.0,0.00019898,2]
[359727565,1746282651574,-450.0,0.00019898,2]
[359727566,1746282651583,-450.0,0.00019898,2]
[359727567,1746282651592,-5270.56,0.00019898,2]
[359727568,1746282651601,-642.47,0.00019898,2]
[359727569,1746282651611,-450.0,0.00019898,2]
[359727570,1746282651621,-508.05,0.00019898,2]
[359727571,1746282651631,-450.0,0.00019898,2]
[359727572,1746282651640,-450.0,0.00019898,2]
[359727573,1746282651650,-450.0,0.00019898,2]
[359727574,1746282651659,-450.0,0.00019898,2]
[359727575,1746282651669,-300.0,0.00019898,2]
[359727576,1746282651678,-450.0,0.00019898,2]
[359727577,1746282651690,-25429.18,0.00019898,2]
[359727578,1746282651699,-1861.17,0.00019898,2]
[359727579,1746282651708,-653.76,0.00019898,2]
[359727580,1746282651718,-1019.76,0.00019898,2]
[359727581,1746282651727,-630.68,0.00019898,2]
[359727582,1746282651736,-450.0,0.00019898,2]
[359727583,1746282651745,-460.98697593,0.00019898,2]